fUSD/lending_fUSD_20260408
["ID","MTS","AMOUNT","RATE_DAILY","PERIOD"]
[420072081,1775649061747,-737.655984,0.00027225,2]
[420072082,1775649061756,-151.0,0.00027225,2]
[420072083,1775649061766,-459.063677,0.00027225,2]
[420072084,1775649061775,-168.042523,0.00027225,2]
[420072085,1775649061785,-737.655984,0.00027225,2]
[420072086,1775649061795,-168.042523,0.00027225,2]
[420072087,1775649061805,-159.211536,0.00027225,2]
[420072088,1775649061814,-151.0,0.00027225,2]
[420072089,1775649061824,-737.655984,0.00027225,2]
[420072090,1775649061834,-151.0,0.00027225,2]
[420072091,1775649061843,-168.042523,0.00027225,2]
[420072092,1775649061853,-159.211536,0.00027225,2]
[420072093,1775649061862,-151.0,0.00027225,2]
[420072094,1775649061871,-737.655984,0.00027225,2]
[420072095,1775649061881,-151.0,0.00027225,2]
[420072096,1775649061890,-159.211536,0.00027225,2]
[420072097,1775649061900,-248.385369,0.00027225,2]
[420072098,1775649061910,-151.0,0.00027225,2]
[420072099,1775649061920,-151.0,0.00027225,2]
[420072100,1775649061930,-229.629962,0.00027225,2]
[420072101,1775649061939,-940.785029,0.00027225,2]
[420072102,1775649061949,-155.447676,0.00027225,2]
[420072103,1775649061958,-151.0,0.00027225,2]
[420072104,1775649061968,-208.982357,0.00027225,2]
[420072105,1775649061977,-151.0,0.00027225,2]
[420072106,1775649061987,-155.447676,0.00027225,2]
[420072107,1775649061997,-940.785029,0.00027225,2]
[420072108,1775649062007,-208.982357,0.00027225,2]
[420072109,1775649062017,-151.0,0.00027225,2]
[420072110,1775649062026,-940.785029,0.00027225,2]
[420072111,1775649062036,-155.447676,0.00027225,2]
[420072112,1775649062046,-208.982357,0.00027225,2]
[420072113,1775649062056,-940.785029,0.00027225,2]
[420072114,1775649062066,-208.982357,0.00027225,2]
[420072115,1775649062075,-155.447676,0.00027225,2]
[420072116,1775649062085,-151.0,0.00027225,2]
[420072117,1775649062095,-151.0,0.00027225,2]
[420072118,1775649062104,-225.445042,0.00027225,2]
[420072119,1775649062114,-674.525264,0.00027225,2]
[420072120,1775649062124,-674.525264,0.00027225,2]
[420072121,1775649062134,-674.525264,0.00027225,2]
[420072122,1775649062145,-151.0,0.00027225,2]
[420072123,1775649062154,-674.525264,0.00027225,2]
[420072124,1775649062164,-151.0,0.00027225,2]
[420072125,1775649062174,-151.0,0.00027225,2]
[420072126,1775649062183,-151.0,0.00027225,2]
[420072127,1775649062193,-151.0,0.00027225,2]
[420072128,1775649062203,-151.0,0.00027225,2]
[420072129,1775649062214,-253.864605,0.00027225,2]
[420072130,1775649062224,-253.864605,0.00027225,2]
[420072131,1775649062234,-253.864605,0.00027225,2]
[420072132,1775649062245,-253.864605,0.00027225,2]
[420072133,1775649062254,-2500.0,0.00027272,2]
[420072134,1775649062264,-226.06643133,0.000273,30]
[420072135,1775649062274,-226.06643131,0.000273,30]
[420072136,1775649062284,-825.0,0.00027305,60]
[420072137,1775649062294,-1347.0,0.00027387,2]
[420072138,1775649062305,-3524.0,0.00027387,2]
[420072139,1775649062315,-622.0,0.00027387,2]
[420072140,1775649062326,-1264.0,0.00027387,2]
[420072141,1775649062337,-3772.0,0.00027387,2]
[420072142,1775649062347,-415.0,0.00027387,2]
[420072143,1775649062357,-4145.04069276,0.0002739,2]
[420072144,1775649062366,-8188.67268528,0.0002739,2]
[420072145,1775649062376,-4470.88021783,0.0002739,7]
[420072146,1775649062386,-916.91,0.00027397,120]
[420072147,1775649062396,-593.38,0.00027397,120]
[420072148,1775649062406,-151.0,0.00027397,7]
[420072149,1775649062417,-3899.38,0.00027397,120]
[420072150,1775649062426,-500.0,0.00027397,2]
[420072151,1775649062436,-500.0,0.00027397,2]
[420072152,1775649062446,-500.0,0.00027397,2]
[420072153,1775649062456,-1000.0,0.00027397,4]
[420072154,1775649062466,-1000.0,0.00027397,4]
[420072155,1775649062475,-1000.0,0.00027397,4]
[420072156,1775649062485,-1000.0,0.00027397,4]
[420072157,1775649062494,-1000.0,0.00027397,4]
[420072158,1775649062503,-1000.0,0.00027397,4]
[420072159,1775649062513,-1000.0,0.00027397,4]
[420072160,1775649062522,-911.78838356,0.00027397,4]
[420072161,1775649062532,-383.03666175,0.00027397,7]
[420072162,1775649062542,-300.0,0.00027397,2]
[420072163,1775649062552,-880.68,0.00027397,2]
[420072164,1775649062562,-1000.0,0.00027397,20]
[420072165,1775649062572,-1012.93,0.00027397,2]
[420072166,1775649062582,-151.0,0.00027397,2]
[420072167,1775649062592,-151.0,0.00027397,2]
[420072168,1775649062602,-151.0,0.00027397,2]
[420072169,1775649062612,-151.0,0.00027397,2]
[420072170,1775649062621,-151.0,0.00027397,2]
[420072171,1775649062632,-151.0,0.00027397,2]
[420072172,1775649062642,-151.0,0.00027397,2]
[420072173,1775649062652,-151.0,0.00027397,2]
[420072174,1775649062663,-256.90751,0.00027397,2]
[420072175,1775649062672,-1791.907921,0.00027397,2]
[420072176,1775649062684,-1791.907921,0.00027397,2]
[420072177,1775649062694,-1791.907921,0.00027397,2]
[420072178,1775649062704,-1791.907921,0.00027397,2]
[420072179,1775649062714,-644.02165496,0.00027397,2]
[420072180,1775649062724,-523.93,0.00027397,2]
[420072181,1775649062734,-1997.079255,0.00027397,2]
[420072182,1775649062745,-1997.079255,0.00027397,2]
[420072183,1775649062755,-1997.079255,0.00027397,2]
[420072184,1775649062765,-1997.079255,0.00027397,2]
[420072185,1775649062775,-1216.777388,0.00027397,2]
[420072186,1775649062786,-1216.777388,0.00027397,2]
[420072187,1775649062796,-1216.777388,0.00027397,2]
[420072188,1775649062806,-1216.777388,0.00027397,2]
[420072189,1775649062817,-151.0,0.00027397,2]
[420072190,1775649062827,-15633.61,0.00027397,10]
[420072191,1775649062837,-13028.01,0.00027397,10]
[420072192,1775649062847,-10856.67,0.00027397,10]
[420072193,1775649062858,-500.0,0.00027397,5]
[420072194,1775649062868,-500.0,0.00027397,5]
[420072195,1775649062878,-150.0,0.00027397,5]
[420072196,1775649062889,-2383.51,0.000274,7]
[420072197,1775649062898,-1753.78,0.000274,7]
[420072198,1775649062909,-4257.28,0.000274,7]
[420072199,1775649062919,-2234.77,0.000274,7]
[420072200,1775649062930,-252578.6,0.000274,7]
[420072201,1775649062940,-151.0,0.000274,7]
[420072202,1775649062950,-151.0,0.000274,7]
[420072203,1775649062960,-151.0,0.000274,7]
[420072204,1775649062970,-151.0,0.000274,7]
[420072205,1775649062979,-151.0,0.000274,7]
[420072206,1775649062990,-171.208264,0.000274,7]
[420072207,1775649063000,-171.208264,0.000274,7]
[420072208,1775649063011,-171.208264,0.000274,7]
[420072209,1775649063021,-171.208264,0.000274,7]
[420072210,1775649063031,-151.0,0.000274,7]
[420072211,1775649063042,-151.0,0.000274,7]
[420072212,1775649063053,-7092.7,0.00027443,2]
[420072213,1775649063063,-57652.50632696,0.0002749,2]
[420072214,1775649063073,-1500.0,0.00027497,120]
[420072215,1775649063083,-202.96735668,0.000275,2]
[420072216,1775649063094,-554.37482612,0.000275,2]
[420072217,1775649063104,-2000.0,0.000275,2]
[420072218,1775649063115,-176.44574778,0.000275,5]
[420072219,1775649063125,-180.0674505,0.00027517,2]
[420072220,1775649063135,-300.0,0.00027549,2]
[420072221,1775649063144,-151.0,0.00027597,7]
[420072222,1775649063154,-252578.6,0.000276,7]
[420072223,1775649063164,-1116.0,0.0002761,5]
[420072224,1775649063174,-250.0,0.00027611,9]
[420072225,1775649063184,-1000.0,0.00027644,120]
[420072226,1775649063194,-3899.38,0.00027644,120]
[420072227,1775649063204,-602.8020892,0.0002765,2]
[420072228,1775649063213,-651.16232498,0.00027671,30]
[420072229,1775649063223,-947.7513,0.000277,2]
[420072230,1775649063234,-1288.49995935,0.000277,2]
[420072231,1775649063245,-593.38,0.00027726,120]
[420072232,1775649063255,-305.63,0.00027726,120]
[420072233,1775649063263,-252578.6,0.000278,7]
[420072234,1775649063273,-172.533458,0.000278,7]
[420072235,1775649063282,-172.533458,0.000278,7]
[420072236,1775649063293,-172.533458,0.000278,7]
[420072237,1775649063302,-172.533458,0.000278,7]
[420072238,1775649063312,-611.28,0.00027808,120]
[420072239,1775649063322,-3899.38,0.0002789,120]
[420072240,1775649063332,-593.38,0.0002789,120]
[420072241,1775649063342,-312.3939009,0.000279,30]
[420072242,1775649063352,-542.63527082,0.00027945,30]
[420072243,1775649063361,-250.0,0.00027945,5]
[420072244,1775649063370,-160.0,0.00028,7]
[420072245,1775649063379,-500.0,0.00028,12]
[420072246,1775649063389,-500.0,0.00028,12]
[420072247,1775649063398,-500.0,0.00028,12]
[420072248,1775649063408,-501.09,0.00028,12]
[420072249,1775649063417,-2383.51,0.00028,7]
[420072250,1775649063426,-1753.78,0.00028,7]
[420072251,1775649063435,-2234.77,0.00028,7]
[420072252,1775649063445,-252578.6,0.00028,7]
[420072253,1775649063454,-51301.04272808,0.00028,2]
[420072254,1775649063464,-160.0,0.00028,2]
[420072255,1775649063474,-704.06436608,0.00028,14]
[420072256,1775649063484,-160.0,0.00028,10]
[420072257,1775649063493,-200.0,0.00028,2]
[420072258,1775649063504,-593.38,0.00028055,120]
[420072259,1775649063513,-916.91,0.00028055,120]
[420072260,1775649063523,-3899.38,0.00028137,120]
[420072261,1775649063533,-1573.0,0.00028247,3]
[420072262,1775649063542,-500.0,0.00028292,120]
[420072263,1775649063552,-213.82886569,0.00028297,120]
[420072264,1775649063562,-151.0,0.000283,5]
[420072265,1775649063571,-151.2393,0.00028331,2]
[420072266,1775649063581,-151.2393,0.00028331,2]
[420072267,1775649063590,-434.10821665,0.00028356,30]
[420072268,1775649063600,-593.38,0.00028384,120]
[420072269,1775649063610,-3899.38,0.00028384,120]
[420072270,1775649063619,-1500.0,0.000284,120]
[420072271,1775649063630,-233.97,0.00028493,2]
[420072272,1775649063640,-1000.0,0.00028493,5]
[420072273,1775649063650,-350.0,0.00028493,5]
[420072274,1775649063659,-2957.58,0.000285,40]
[420072275,1775649063668,-3899.38,0.0002863,120]
[420072276,1775649063678,-593.38,0.0002863,120]
[420072277,1775649063687,-2500.0,0.00028642,2]
[420072278,1775649063698,-1324.08918725,0.00028646,15]
[420072279,1775649063707,-290.0,0.00028724,2]
[420072280,1775649063716,-1118.9,0.00028766,7]
[420072281,1775649063726,-500.0,0.00028767,120]
[420072282,1775649063735,-500.0,0.00028767,120]
[420072283,1775649063745,-500.0,0.00028767,120]
[420072284,1775649063755,-500.0,0.00028767,120]
[420072285,1775649063764,-500.0,0.00028767,120]
[420072286,1775649063774,-500.0,0.00028767,120]
[420072287,1775649063783,-213.62607601,0.00028767,120]
[420072288,1775649063793,-500.0,0.00028767,2]
[420072289,1775649063801,-500.0,0.00028767,2]
[420072290,1775649063810,-500.0,0.00028767,2]
[420072291,1775649063820,-500.0,0.00028767,2]
[420072292,1775649063830,-500.0,0.00028767,2]
[420072293,1775649063839,-500.0,0.00028767,2]
[420072294,1775649063849,-500.0,0.00028767,2]
[420072295,1775649063859,-500.0,0.00028767,2]
[420072296,1775649063868,-500.0,0.00028767,2]
[420072297,1775649063878,-500.0,0.00028767,2]
[420072298,1775649063887,-757.0,0.00028767,2]
[420072299,1775649063896,-500.0,0.00028767,2]
[420072300,1775649063906,-500.0,0.00028767,2]
[420072301,1775649063916,-500.0,0.00028767,2]
[420072302,1775649063926,-500.0,0.00028767,2]
[420072303,1775649063935,-500.0,0.00028767,2]
[420072304,1775649063946,-500.0,0.00028767,2]
[420072305,1775649063955,-500.0,0.00028767,2]
[420072306,1775649063964,-500.0,0.00028767,2]
[420072307,1775649063974,-500.0,0.00028767,2]
[420072308,1775649063983,-500.0,0.00028767,2]
[420072309,1775649063993,-500.0,0.00028767,2]
[420072310,1775649064003,-500.0,0.00028767,2]
[420072311,1775649064013,-500.0,0.00028767,2]
[420072312,1775649064022,-500.0,0.00028767,2]
[420072313,1775649064032,-500.0,0.00028767,2]
[420072314,1775649064042,-500.0,0.00028767,2]
[420072315,1775649064052,-500.0,0.00028767,2]
[420072316,1775649064063,-500.0,0.00028767,2]
[420072317,1775649064072,-500.0,0.00028767,2]
[420072318,1775649064082,-500.0,0.00028767,2]
[420072319,1775649064093,-500.0,0.00028767,2]
[420072320,1775649064103,-500.0,0.00028767,2]
[420072321,1775649064113,-500.0,0.00028767,2]
[420072322,1775649064123,-500.0,0.00028767,2]
[420072323,1775649064133,-500.0,0.00028767,2]
[420072324,1775649064142,-500.0,0.00028767,2]
[420072325,1775649064152,-500.0,0.00028767,2]
[420072326,1775649064162,-500.0,0.00028767,2]
[420072327,1775649064170,-500.0,0.00028767,2]
[420072328,1775649064180,-500.0,0.00028767,2]
[420072329,1775649064189,-500.0,0.00028767,2]
[420072330,1775649064199,-500.0,0.00028767,2]
[420072331,1775649064209,-500.0,0.00028767,2]
[420072332,1775649064217,-500.0,0.00028767,2]
[420072333,1775649064227,-500.0,0.00028767,2]
[420072334,1775649064236,-500.0,0.00028767,2]
[420072335,1775649064246,-500.0,0.00028767,2]
[420072336,1775649064256,-500.0,0.00028767,2]
[420072337,1775649064266,-500.0,0.00028767,2]
[420072338,1775649064276,-500.0,0.00028767,2]
[420072339,1775649064286,-500.0,0.00028767,2]
[420072340,1775649064295,-500.0,0.00028767,2]
[420072341,1775649064306,-500.0,0.00028767,2]
[420072342,1775649064315,-500.0,0.00028767,2]
[420072343,1775649064325,-500.0,0.00028767,2]
[420072344,1775649064334,-500.0,0.00028767,2]
[420072345,1775649064343,-500.0,0.00028767,2]
[420072346,1775649064353,-500.0,0.00028767,2]
[420072347,1775649064362,-500.0,0.00028767,2]
[420072348,1775649064372,-500.0,0.00028767,2]
[420072349,1775649064381,-500.0,0.00028767,2]
[420072350,1775649064390,-500.0,0.00028767,2]
[420072351,1775649064400,-500.0,0.00028767,2]
[420072352,1775649064410,-500.0,0.00028767,2]
[420072353,1775649064419,-500.0,0.00028767,2]
[420072354,1775649064429,-500.0,0.00028767,2]
[420072355,1775649064438,-500.0,0.00028767,2]
[420072356,1775649064447,-500.0,0.00028767,2]
[420072357,1775649064456,-872.0,0.00028767,2]
[420072358,1775649064466,-500.0,0.00028767,2]
[420072359,1775649064475,-500.0,0.00028767,2]
[420072360,1775649064485,-500.0,0.00028767,2]
[420072361,1775649064494,-500.0,0.00028767,2]
[420072362,1775649064504,-500.0,0.00028767,2]
[420072363,1775649064513,-500.0,0.00028767,2]
[420072364,1775649064523,-500.0,0.00028767,2]
[420072365,1775649064532,-500.0,0.00028767,2]
[420072366,1775649064541,-500.0,0.00028767,2]
[420072367,1775649064550,-500.0,0.00028767,2]
[420072368,1775649064560,-500.0,0.00028767,2]
[420072369,1775649064569,-500.0,0.00028767,2]
[420072370,1775649064579,-500.0,0.00028767,2]
[420072371,1775649064588,-500.0,0.00028767,2]
[420072372,1775649064598,-944.0,0.00028767,2]
[420072373,1775649064607,-500.0,0.00028767,2]
[420072374,1775649064617,-500.0,0.00028767,2]
[420072375,1775649064626,-500.0,0.00028767,2]
[420072376,1775649064636,-500.0,0.00028767,2]
[420072377,1775649064645,-500.0,0.00028767,2]
[420072378,1775649064654,-500.0,0.00028767,2]
[420072379,1775649064664,-500.0,0.00028767,2]
[420072380,1775649064673,-500.0,0.00028767,2]
[420072381,1775649064683,-500.0,0.00028767,2]
[420072382,1775649064693,-500.0,0.00028767,2]
[420072383,1775649064702,-500.0,0.00028767,2]
[420072384,1775649064711,-500.0,0.00028767,2]
[420072385,1775649064721,-500.0,0.00028767,2]
[420072386,1775649064732,-500.0,0.00028767,2]
[420072387,1775649064741,-500.0,0.00028767,2]
[420072388,1775649064751,-500.0,0.00028767,2]
[420072389,1775649064761,-500.0,0.00028767,2]
[420072390,1775649064770,-500.0,0.00028767,2]
[420072391,1775649064779,-500.0,0.00028767,2]
[420072392,1775649064788,-500.0,0.00028767,2]
[420072393,1775649064798,-500.0,0.00028767,2]
[420072394,1775649064809,-500.0,0.00028767,2]
[420072395,1775649064818,-500.0,0.00028767,2]
[420072396,1775649064828,-500.0,0.00028767,2]
[420072397,1775649064837,-762.0,0.00028767,2]
[420072398,1775649064846,-500.0,0.00028767,2]
[420072399,1775649064855,-700.0,0.00028767,2]
[420072400,1775649064865,-900.0,0.00028767,2]
[420072401,1775649064874,-900.0,0.00028767,2]
[420072402,1775649064884,-787.0,0.00028767,2]
[420072403,1775649064893,-241.0,0.00028767,2]
[420072404,1775649064902,-325.58116249,0.00028767,30]
[420072405,1775649064912,-1000.0,0.00028767,5]
[420072406,1775649064922,-201.0,0.0002882,30]
[420072407,1775649064931,-2443.24,0.00028839,2]
[420072408,1775649064942,-593.38,0.00028877,120]
[420072409,1775649064951,-3899.38,0.00028877,120]
[420072410,1775649064961,-35020.64241072,0.000289,3]
[420072411,1775649064971,-346.0,0.00028974,2]
[420072412,1775649064981,-1116.0,0.0002899,5]
[420072413,1775649065256,-2729.16308032,0.00029,120]
[420072414,1775649065275,-506.83274472,0.00029,2]
[420072415,1775649065284,-1000.0,0.00029,120]
[420072416,1775649065294,-4257.28,0.00029,7]
[420072417,1775649065304,-236964.11041417,0.00029,2]
[420072418,1775649065314,-160.0,0.00029,3]
[420072419,1775649065324,-160.0,0.00029,3]
[420072420,1775649065334,-650.0,0.00029,2]
[420072421,1775649065343,-593.38,0.00029041,120]
[420072422,1775649065353,-450.0,0.00029041,5]
[420072423,1775649065363,-1444.0,0.00029041,120]
[420072424,1775649065372,-152.0,0.00029098,5]
[420072425,1775649065382,-3899.38,0.00029123,120]
[420072426,1775649065392,-1092.1423,0.000292,2]
[420072427,1775649065401,-317.74597666,0.00029221,2]
[420072428,1775649065411,-151.0,0.000293,5]
[420072429,1775649065420,-150.0,0.000293,120]
[420072430,1775649065430,-593.38,0.0002937,120]
[420072431,1775649065441,-3899.38,0.0002937,120]
[420072432,1775649065451,-150.0,0.00029371,120]
[420072433,1775649065461,-217.05410833,0.00029452,30]
[420072434,1775649065471,-668.65185757,0.00029498,2]
[420072435,1775649065481,-721.12765535,0.00029498,2]
[420072436,1775649065490,-200.0,0.000295,5]
[420072437,1775649065501,-15646.42501508,0.000295,120]
[420072438,1775649065513,-1500.0,0.00029589,5]
[420072439,1775649065522,-550.0,0.00029589,5]
[420072440,1775649065532,-3899.38,0.00029616,120]
[420072441,1775649065542,-593.38,0.00029699,120]
[420072442,1775649065552,-825.0,0.0002974,60]
[420072443,1775649065563,-468.59085135,0.000298,30]
[420072444,1775649065573,-3899.38,0.00029863,120]
[420072445,1775649065583,-593.38,0.00029863,120]
[420072446,1775649065593,-79655.35792374,0.000299,2]
[420072447,1775649065603,-1000.0,0.00029924,7]
[420072448,1775649065613,-239.53360522,0.0002999,2]
[420072449,1775649065623,-151.0,0.00029997,7]
[420072450,1775649065633,-4825.80731348,0.00029999,120]
[420072451,1775649065643,-500.0,0.00029999,120]
[420072452,1775649065654,-444064.95035987,0.0003,2]
[420072453,1775649065663,-600.0,0.0003,120]
[420072454,1775649065674,-369.14955146,0.0003,120]
[420072455,1775649065684,-2000.0,0.0003,120]
[420072456,1775649065695,-2000.0,0.0003,120]
[420072457,1775649065705,-2000.0,0.0003,120]
[420072458,1775649065715,-2000.0,0.0003,120]
[420072459,1775649065725,-2000.0,0.0003,120]
[420072460,1775649065735,-500.0,0.0003,120]
[420072461,1775649065746,-619.14,0.0003,2]
[420072462,1775649065756,-2000.0,0.0003,3]
[420072463,1775649065766,-357.94,0.0003,2]
[420072464,1775649065776,-4820.8527928,0.0003,3]
[420072465,1775649065785,-7547.54406123,0.0003,2]
[420072466,1775649065796,-170.0,0.0003,2]
[420072467,1775649065806,-118297.72428656,0.0003,5]
[420072468,1775649065815,-9252.7,0.0003,25]
[420072469,1775649065826,-74632.6331769,0.0003,10]
[420072470,1775649065837,-22689.5158,0.0003,2]
[420072471,1775649065847,-967.5922,0.0003,2]
[420072472,1775649065858,-29972.996,0.0003,2]
[420072473,1775649065868,-200.0,0.0003,7]
[420072474,1775649065879,-288.35101062,0.0003,120]
[420072475,1775649065888,-500.0,0.0003,63]
[420072476,1775649065898,-5000.0,0.0003,15]
[420072477,1775649065907,-160.0,0.0003,120]
[420072478,1775649065917,-363.99105838,0.0003,30]
[420072479,1775649065927,-18630.20103734,0.0003,2]
[420072480,1775649065936,-418.88674257,0.0003,120]
[420072481,1775649065946,-20063.22009878,0.0003,2]
[420072482,1775649065956,-2000.0,0.0003,14]
[420072483,1775649065966,-322.41532473,0.0003,2]
[420072484,1775649065975,-1835.6666732,0.0003,2]
[420072485,1775649065985,-582.37356237,0.0003,4]
[420072486,1775649065995,-891.62543935,0.0003,120]
[420072487,1775649066005,-479.51908484,0.0003,120]
[420072488,1775649066014,-1354.85728009,0.0003,30]
[420072489,1775649066024,-400.0,0.0003,20]
[420072490,1775649066036,-172106.23430282,0.0003,120]
[420072491,1775649066046,-521.18893086,0.0003,30]
[420072492,1775649066056,-164.62479907,0.0003,2]
[420072493,1775649066067,-1018.83291511,0.0003,120]
[420072494,1775649066078,-150.0,0.0003,2]
[420072495,1775649066087,-511.49886188,0.0003,7]
[420072496,1775649066097,-8997.70554311,0.0003,30]
[420072497,1775649066107,-1000.0,0.0003,120]
[420072498,1775649066117,-1600.0,0.0003,7]
[420072499,1775649066127,-1500.0,0.0003,120]
[420072500,1775649066137,-160.0,0.0003,120]
[420072501,1775649066147,-2383.51,0.0003,7]
[420072502,1775649066157,-1753.78,0.0003,7]
[420072503,1775649066167,-2234.77,0.0003,7]
[420072504,1775649066178,-252578.6,0.0003,7]
[420072505,1775649066188,-20018.1,0.0003,120]
[420072506,1775649066198,-172.533458,0.0003,7]
[420072507,1775649066208,-172.533458,0.0003,7]
[420072508,1775649066218,-172.533458,0.0003,7]
[420072509,1775649066228,-172.533456,0.0003,7]
[420072510,1775649066239,-151.0,0.0003,7]
[420072511,1775649066249,-151.0,0.0003,7]
[420072512,1775649066258,-151.0,0.0003,7]
[420072513,1775649066269,-301.64637,0.0003,7]
[420072514,1775649066279,-151.0,0.0003,7]
[420072515,1775649066290,-171.208264,0.0003,7]
[420072516,1775649066299,-171.208264,0.0003,7]
[420072517,1775649066309,-171.208264,0.0003,7]
[420072518,1775649066319,-171.208264,0.0003,7]
[420072519,1775649066329,-151.0,0.0003,7]
[420072520,1775649066339,-152.065096,0.0003,7]
[420072521,1775649066350,-257.246826,0.0003,7]
[420072522,1775649066360,-151.0,0.0003,7]
[420072523,1775649066370,-151.0,0.0003,7]
[420072524,1775649066380,-151.0,0.0003,7]
[420072525,1775649066389,-151.0,0.0003,7]
[420072526,1775649066400,-151.0,0.0003,7]
[420072527,1775649066410,-151.0,0.0003,7]
[420072528,1775649066419,-151.0,0.0003,7]
[420072529,1775649066429,-151.0,0.0003,7]
[420072530,1775649066439,-151.0,0.0003,7]
[420072531,1775649066449,-151.0,0.0003,7]
[420072532,1775649066458,-151.0,0.0003,7]
[420072533,1775649066468,-238.058874,0.0003,7]
[420072534,1775649066478,-238.058874,0.0003,7]
[420072535,1775649066487,-151.0,0.0003,7]
[420072536,1775649066498,-238.058874,0.0003,7]
[420072537,1775649066507,-238.058874,0.0003,7]
[420072538,1775649066517,-151.0,0.0003,7]
[420072539,1775649066527,-151.0,0.0003,7]
[420072540,1775649066537,-191.597734,0.0003,7]
[420072541,1775649066547,-151.0,0.0003,7]
[420072542,1775649066557,-151.0,0.0003,7]
[420072543,1775649066566,-151.0,0.0003,7]
[420072544,1775649066576,-151.0,0.0003,7]
[420072545,1775649066586,-151.0,0.0003,7]
[420072546,1775649066596,-151.0,0.0003,7]
[420072547,1775649066606,-151.0,0.0003,7]
[420072548,1775649066617,-151.0,0.0003,7]
[420072549,1775649066627,-151.0,0.0003,7]
[420072550,1775649066638,-151.0,0.0003,7]
[420072551,1775649066648,-151.0,0.0003,7]
[420072552,1775649066659,-151.0,0.0003,7]
[420072553,1775649066669,-152.715689,0.0003,7]
[420072554,1775649066681,-151.0,0.0003,7]
[420072555,1775649066692,-151.0,0.0003,7]
[420072556,1775649066704,-151.0,0.0003,7]
[420072557,1775649066714,-168.847198,0.0003,2]
[420072558,1775649066724,-151.0,0.0003,7]
[420072559,1775649066733,-152.337213,0.0003,7]
[420072560,1775649066743,-188.221017,0.0003,7]
[420072561,1775649066753,-151.0,0.0003,7]
[420072562,1775649066764,-151.0,0.0003,7]
[420072563,1775649066774,-151.0,0.0003,7]
[420072564,1775649066785,-151.0,0.0003,7]
[420072565,1775649066796,-151.0,0.0003,7]
[420072566,1775649066806,-151.0,0.0003,7]
[420072567,1775649066816,-151.0,0.0003,7]
[420072568,1775649066826,-151.0,0.0003,7]
[420072569,1775649066835,-151.0,0.0003,7]
[420072570,1775649066846,-151.0,0.0003,7]
[420072571,1775649066856,-151.0,0.0003,7]
[420072572,1775649066866,-151.0,0.0003,7]
[420072573,1775649066876,-151.0,0.0003,7]
[420072574,1775649066885,-162.4957,0.0003,7]
[420072575,1775649066895,-151.222904,0.0003,7]
[420072576,1775649066904,-151.0,0.0003,7]
[420072577,1775649066914,-162.4957,0.0003,7]
[420072578,1775649066923,-162.4957,0.0003,7]
[420072579,1775649066933,-152.394125,0.0003,7]
[420072580,1775649066943,-162.4957,0.0003,7]